bitfinex/quotes_BTCUSD_20250910
["timestamp","ask_amount","ask_price","bid_price","bid_amount"]
[1757506737668,0.732326,112720.0,112710.0,0.09191599]
[1757506738145,0.5548952,112720.0,112710.0,0.09191599]
[1757506738345,0.42171898,112720.0,112710.0,0.09191599]
[1757506738792,0.5548952,112720.0,112710.0,0.09191599]
[1757506739799,0.5558952,112720.0,112710.0,0.09191599]
[1757506740500,0.5548952,112720.0,112710.0,0.09191599]
[1757506740696,0.34643898,112720.0,112710.0,0.09191599]
[1757506741156,0.00137898,112720.0,112710.0,0.42278061]
[1757506741377,0.00137898,112720.0,112710.0,0.42056253]
[1757506742464,0.21063589,112720.0,112710.0,0.09191599]
[1757506742689,0.80334669,112720.0,112710.0,0.09191599]
[1757506742925,0.2274519,112710.0,112680.0,0.15112]
[1757506743187,0.03146489,112700.0,112690.0,0.09191599]
[1757506743399,0.2377618,112700.0,112690.0,0.09191599]
[1757506743616,0.28553691,112700.0,112690.0,0.09191599]
[1757506744468,0.08134,112700.0,112690.0,0.09191599]
[1757506744677,0.2877618,112700.0,112690.0,0.09191599]
[1757506744886,0.28553691,112700.0,112690.0,0.09191599]
[1757506748305,0.28653691,112700.0,112690.0,0.09191599]
[1757506748557,0.05606,112700.0,112690.0,0.09191599]
[1757506748744,0.05828489,112700.0,112690.0,0.09191599]
[1757506749161,0.2624818,112700.0,112690.0,0.09191599]
[1757506749316,0.26025691,112700.0,112690.0,0.09191599]
[1757506749528,0.00606,112700.0,112690.0,0.09413446]
[1757506749732,0.00828489,112700.0,112690.0,0.09191599]
[1757506750311,0.2124818,112700.0,112690.0,0.09191599]
[1757506750580,0.21025691,112700.0,112690.0,0.09191599]
[1757506751056,0.00606,112700.0,112690.0,0.27161249]
[1757506751268,0.00828489,112700.0,112690.0,0.09191599]
[1757506751469,0.001,112700.0,112690.0,0.4758094]
[1757506751708,0.001,112700.0,112690.0,0.26939402]
[1757506752105,0.001,112700.0,112690.0,0.47359093]
[1757506752361,0.001,112700.0,112690.0,0.26939402]
[1757506752578,0.00417,112700.0,112690.0,0.26939402]
[1757506752972,0.2125518,112700.0,112690.0,0.09191599]
[1757506753186,0.08299,112700.0,112690.0,0.09191599]
[1757506753400,0.00613,112700.0,112690.0,0.09191599]
[1757506753645,0.00835489,112700.0,112690.0,0.09191599]
[1757506753868,0.001,112700.0,112690.0,0.26939402]
[1757506754000,0.00613,112700.0,112690.0,0.24311599]
[1757506754210,0.00613,112700.0,112690.0,0.42059402]
[1757506754423,0.00613,112700.0,112690.0,0.24311599]
[1757506754675,0.00613,112700.0,112690.0,0.42059402]
[1757506754979,0.001,112700.0,112690.0,0.42059402]
[1757506755784,0.00539489,112710.0,112690.0,0.42059402]
[1757506755998,0.00317,112710.0,112700.0,0.26937827]
[1757506756419,0.00037898,112720.0,112700.0,0.26937827]
[1757506756595,0.00317,112710.0,112700.0,0.26937827]
[1757506756797,0.00513,112710.0,112700.0,0.09191599]
[1757506757027,0.20932691,112710.0,112700.0,0.09191599]
[1757506757228,0.00417,112710.0,112700.0,0.26937827]
[1757506757786,0.21032691,112710.0,112700.0,0.09191599]
[1757506757988,0.28718691,112710.0,112700.0,0.09191599]
[1757506758186,0.43830691,112710.0,112700.0,0.09191599]
[1757506758389,0.95575345,112710.0,112700.0,0.09191599]
[1757506759073,0.95475345,112710.0,112700.0,0.09191599]
[1757506759272,0.80363345,112710.0,112700.0,0.09191599]
[1757506759475,0.77730691,112710.0,112700.0,0.09191599]
[1757506759825,0.95475345,112710.0,112700.0,0.09191599]
[1757506760481,0.95575345,112710.0,112700.0,0.09191599]
[1757506761065,0.57303,112710.0,112700.0,0.09191599]
[1757506761270,0.62618691,112710.0,112700.0,0.09191599]
[1757506761468,0.77726691,112710.0,112700.0,0.09191599]
[1757506762047,0.62618691,112710.0,112700.0,0.09191599]
[1757506762257,0.77722691,112710.0,112700.0,0.09191599]
[1757506762684,0.77918691,112710.0,112700.0,0.09191599]
[1757506763293,0.57499,112710.0,112700.0,0.09191599]
[1757506763495,0.77918691,112710.0,112700.0,0.09191599]
[1757506764343,0.95663345,112710.0,112700.0,0.09191599]
[1757506764549,0.77918691,112710.0,112700.0,0.09191599]
[1757506764963,0.95663345,112710.0,112700.0,0.09191599]
[1757506765145,0.77914691,112710.0,112700.0,0.09191599]
[1757506765550,0.62818691,112710.0,112700.0,0.09191599]
[1757506765745,0.77914691,112710.0,112700.0,0.09191599]
[1757506766086,0.77910691,112710.0,112700.0,0.09191599]
[1757506766745,0.75235654,112710.0,112700.0,0.09191599]
[1757506766951,0.95655345,112710.0,112700.0,0.09191599]
[1757506767165,0.05,112690.0,112670.0,0.17750943]
[1757506767385,0.4341618,112690.0,112680.0,0.09191599]
[1757506767635,0.95137494,112690.0,112680.0,0.09191599]
[1757506768061,0.95454494,112690.0,112680.0,0.09191599]
[1757506768906,0.95454494,112690.0,112660.0,0.07061212]
[1757506768907,0.05,112670.0,112660.0,0.07061212]
[1757506769129,0.39667014,112670.0,112660.0,0.16252811]
[1757506769348,0.42670014,112670.0,112660.0,0.16252811]
[1757506769575,0.42670014,112670.0,112660.0,0.09191599]
[1757506770238,0.22250323,112670.0,112660.0,0.09191599]
[1757506770453,0.42670014,112670.0,112660.0,0.09191599]
[1757506770662,0.94420968,112670.0,112660.0,0.09191599]
[1757506770880,0.94416968,112670.0,112660.0,0.09191599]
[1757506771088,0.61578014,112670.0,112660.0,0.09201599]
[1757506771314,0.76666014,112670.0,112660.0,0.09201599]
[1757506771527,0.94416968,112670.0,112660.0,0.09201599]
[1757506772902,0.94416968,112670.0,112660.0,0.0001]
[1757506773177,0.79328968,112670.0,112660.0,0.0001]
[1757506773421,0.94412968,112670.0,112660.0,0.0001]
[1757506773876,0.76658014,112670.0,112660.0,0.0001]
[1757506774057,0.61578014,112670.0,112660.0,0.0001]
[1757506774203,0.76658014,112670.0,112660.0,0.0001]
[1757506774648,0.56238323,112670.0,112660.0,0.0001]
[1757506774869,0.94408968,112670.0,112660.0,0.0001]
[1757506775032,0.76658014,112670.0,112660.0,0.0001]
[1757506775228,0.53552323,112670.0,112660.0,0.09201599]
[1757506775445,0.22234323,112670.0,112660.0,0.09201599]
[1757506776431,0.19548323,112670.0,112660.0,0.09201599]
[1757506776760,0.42654014,112670.0,112660.0,0.09201599]
[1757506776971,0.27578014,112670.0,112660.0,0.09201599]
[1757506777117,0.39968014,112670.0,112660.0,0.09201599]
[1757506777511,0.27578014,112670.0,112660.0,0.09201599]
[1757506777725,0.39964014,112670.0,112660.0,0.09201599]
[1757506778067,0.19544323,112670.0,112660.0,0.09201599]
[1757506779808,0.04472323,112670.0,112660.0,0.09201599]
[1757506779962,0.04472323,112670.0,112660.0,0.09423505]
[1757506779963,0.00735489,112670.0,112660.0,0.09423505]
[1757506780211,0.00317,112670.0,112660.0,0.27176034]
[1757506780383,0.00317,112670.0,112660.0,0.26954128]
[1757506780580,0.62785721,112680.0,112660.0,0.26954128]
[1757506780581,0.49064,112680.0,112660.0,0.26954128]
[1757506780780,0.49381,112680.0,112670.0,0.09191599]
[1757506781031,0.76325014,112680.0,112670.0,0.09191599]
[1757506781422,0.76630014,112680.0,112670.0,0.09191599]
[1757506782650,0.73936014,112680.0,112670.0,0.09191599]
[1757506782854,0.74036014,112680.0,112670.0,0.09191599]
[1757506783206,0.38560323,112680.0,112670.0,0.09191599]
[1757506783416,0.15461,112680.0,112670.0,0.26942553]
[1757506783625,0.40172503,112680.0,112670.0,0.09191599]
[1757506783833,0.42565014,112680.0,112670.0,0.09191599]
[1757506784602,0.39946014,112680.0,112670.0,0.09191599]
[1757506785017,0.40046014,112680.0,112670.0,0.09191599]
[1757506785615,0.39946014,112680.0,112670.0,0.09191599]
[1757506785810,0.40046014,112680.0,112670.0,0.09191599]
[1757506786211,0.00615,112680.0,112670.0,0.27164439]
[1757506786476,0.15144,112680.0,112670.0,0.26942553]
[1757506786707,0.00405,112680.0,112670.0,0.26942553]
[1757506786856,0.15144,112680.0,112670.0,0.26942553]
[1757506787061,0.001,112680.0,112670.0,0.26942553]
[1757506787913,0.001,112680.0,112670.0,0.41982553]
[1757506788922,0.001,112680.0,112670.0,0.62402244]
[1757506789171,0.001,112680.0,112670.0,0.69222244]
[1757506789398,0.001,112680.0,112670.0,0.69736244]
[1757506789545,0.001,112680.0,112670.0,0.69222244]
[1757506790297,0.24684014,112710.0,112690.0,0.17747151]
[1757506790506,0.24684014,112710.0,112700.0,0.09191599]
[1757506790507,0.58392865,112710.0,112700.0,0.09191599]
[1757506790717,0.61007865,112710.0,112700.0,0.09191599]
[1757506790921,0.61217865,112710.0,112700.0,0.09191599]
[1757506791144,0.41103174,112710.0,112700.0,0.09191599]
[1757506791372,0.00013851,112710.0,112700.0,0.26937827]
[1757506792140,0.00013851,112710.0,112700.0,0.47357518]
[1757506792342,0.00013851,112710.0,112700.0,0.62385518]
[1757506794203,0.00013851,112710.0,112700.0,0.26937827]
[1757506794403,0.00113851,112710.0,112700.0,0.41961827]
[1757506795001,0.00113851,112710.0,112700.0,0.62377518]
[1757506795624,0.00013851,112710.0,112700.0,0.47357518]
[1757506795804,0.00013851,112710.0,112700.0,0.41957827]
[1757506796016,0.00013851,112710.0,112700.0,0.42057827]
[1757506796213,0.00013851,112710.0,112700.0,0.62477518]
[1757506796671,0.00013851,112710.0,112700.0,0.47357518]
[1757506796846,0.00013851,112710.0,112700.0,0.47457518]
[1757506797298,0.00013851,112710.0,112700.0,0.62469518]
[1757506797480,0.00013851,112710.0,112700.0,0.42049827]
[1757506798093,0.00013851,112710.0,112700.0,0.27037827]
[1757506798266,0.00013851,112710.0,112700.0,0.42045827]
[1757506798480,0.00528851,112710.0,112700.0,0.09291599]
[1757506798686,0.00318851,112710.0,112700.0,0.42045827]
[1757506798887,0.00013851,112710.0,112700.0,0.42045827]
[1757506800308,0.00528851,112710.0,112700.0,0.42045827]
[1757506800527,0.00013851,112710.0,112700.0,0.42045827]
[1757506800919,0.00013851,112710.0,112700.0,0.62465518]
[1757506801157,0.00013851,112710.0,112700.0,0.42045827]
[1757506801364,0.00013851,112710.0,112700.0,0.69763518]
[1757506801570,0.00013851,112710.0,112700.0,1.03763518]
[1757506802113,0.00013851,112710.0,112700.0,1.07316853]
[1757506802342,0.00013851,112710.0,112700.0,1.00184383]
[1757506802591,0.00013851,112710.0,112700.0,1.40184383]
[1757506803229,0.00013851,112710.0,112700.0,1.22857827]
[1757506803402,0.00013851,112710.0,112700.0,0.88857827]
[1757506803549,0.00013851,112710.0,112700.0,0.48857827]
[1757506804165,0.13301072,112710.0,112700.0,0.33853827]
[1757506804400,0.13816072,112710.0,112700.0,0.27037827]
[1757506804606,0.00528851,112710.0,112700.0,0.09291599]
[1757506804807,0.29940782,112710.0,112700.0,0.09291599]
[1757506805014,0.33677616,112710.0,112700.0,0.09291599]
[1757506805223,0.20390395,112710.0,112700.0,0.09291599]
[1757506807036,0.5142227,112710.0,112700.0,0.09291599]
[1757506807233,1.0041827,112710.0,112700.0,0.09291599]
[1757506807449,1.0041827,112710.0,112700.0,0.001]
[1757506808897,1.0041427,112710.0,112700.0,0.001]
[1757506809117,1.0041027,112710.0,112700.0,0.001]
[1757506809327,0.34,112700.0,112670.0,0.14992]
[1757506809536,0.1642971,112690.0,112680.0,0.09191599]
[1757506809771,0.20599033,112690.0,112680.0,0.26940977]
[1757506809988,0.20376544,112690.0,112680.0,0.26940977]
[1757506810984,0.20376544,112690.0,112680.0,0.09191599]
[1757506812309,0.17761544,112690.0,112680.0,0.09191599]
[1757506812508,0.04796812,112690.0,112680.0,0.09191599]
[1757506813208,0.04796812,112690.0,112680.0,0.27162844]
[1757506813381,0.04796812,112690.0,112680.0,0.27137977]
[1757506813581,0.00322489,112690.0,112680.0,0.27137977]
[1757506813790,0.001,112690.0,112680.0,0.40425198]
[1757506813983,0.001,112690.0,112680.0,0.27137977]
[1757506814477,0.53255323,112700.0,112680.0,0.27137977]
[1757506814883,0.03959323,112700.0,112690.0,0.17747803]
[1757506815141,0.00013851,112710.0,112700.0,0.17746228]
[1757506815362,0.03973174,112710.0,112700.0,0.27134827]
[1757506815536,0.06983174,112710.0,112700.0,0.09191599]
[1757506815691,0.20270395,112710.0,112700.0,0.09191599]
[1757506816497,0.06983174,112710.0,112700.0,0.09413426]
[1757506816926,0.07083174,112710.0,112700.0,0.27356654]
[1757506817124,0.00113851,112710.0,112700.0,0.27134827]
[1757506817328,0.00013851,112710.0,112700.0,0.27134827]
[1757506817759,0.00113851,112710.0,112700.0,0.27134827]
[1757506818143,0.00113851,112710.0,112700.0,0.40422048]
[1757506818343,0.00113851,112710.0,112700.0,0.40560048]
[1757506819127,0.00013851,112710.0,112700.0,0.40560048]
[1757506819328,0.00013851,112710.0,112700.0,0.40422048]
[1757506819568,0.00013851,112710.0,112700.0,0.40560048]
[1757506823151,0.00013851,112710.0,112700.0,0.78610383]
[1757506823752,0.00013851,112710.0,112700.0,0.78510383]
[1757506823960,0.00013851,112710.0,112700.0,0.78610383]
[1757506825309,0.00013851,112710.0,112700.0,1.18610383]
[1757506826918,0.00013851,112710.0,112700.0,1.18213383]
[1757506827122,0.00013851,112710.0,112700.0,1.33165383]
[1757506827325,0.00013851,112710.0,112700.0,1.02275504]
[1757506827519,0.00013851,112710.0,112700.0,0.42182827]
[1757506828807,0.00540851,112710.0,112700.0,0.09291599]
[1757506829022,0.00540851,112710.0,112700.0,0.24235599]
[1757506829668,0.00540851,112710.0,112700.0,0.41981827]
[1757506829891,0.00540851,112710.0,112700.0,0.24235599]
[1757506830113,0.13828072,112710.0,112700.0,0.09291599]
[1757506830352,0.16311072,112710.0,112700.0,0.09291599]
[1757506830577,0.16311072,112710.0,112700.0,0.24235599]
[1757506831364,0.20492884,112710.0,112700.0,0.24235599]
[1757506831554,0.20270395,112710.0,112700.0,0.24235599]
[1757506831755,0.20270395,112710.0,112700.0,0.09291599]
[1757506831962,0.20270395,112710.0,112700.0,0.24231599]
[1757506832379,0.00224851,112710.0,112700.0,0.42174827]
[1757506832541,0.00013851,112710.0,112700.0,0.42174827]
[1757506833154,0.00013851,112710.0,112700.0,0.42074827]
[1757506833506,0.00013851,112710.0,112700.0,0.42174827]
[1757506834101,0.00013851,112710.0,112700.0,0.42074827]
[1757506834750,0.00224851,112710.0,112700.0,0.41877827]
[1757506834954,0.13828072,112710.0,112700.0,0.41877827]
[1757506835942,0.13828072,112710.0,112700.0,0.41869827]
[1757506838164,0.00540851,112710.0,112700.0,0.41869827]
[1757506838652,0.00013851,112710.0,112700.0,0.42066827]
[1757506840940,0.00540851,112710.0,112700.0,0.41869827]
[1757506841370,0.00013851,112710.0,112700.0,0.42085827]
[1757506841783,0.00541851,112710.0,112700.0,0.41869827]
[1757506841982,0.00013851,112710.0,112700.0,0.42085827]
[1757506844688,0.00221851,112710.0,112700.0,0.42085827]
[1757506844905,0.00013851,112710.0,112700.0,0.42085827]
[1757506846065,0.00013851,112710.0,112700.0,0.55511048]
[1757506846278,0.00013851,112710.0,112700.0,0.55840048]
[1757506846486,0.00013851,112710.0,112700.0,0.76567495]
[1757506846698,0.00013851,112710.0,112700.0,0.61635495]
[1757506846906,0.00013851,112710.0,112700.0,1.10222495]
[1757506847552,0.00013851,112710.0,112700.0,0.78299161]
[1757506847762,0.00013851,112710.0,112700.0,0.78461161]
[1757506847919,0.00013851,112710.0,112700.0,0.93373161]
[1757506848350,0.00013851,112710.0,112700.0,0.76365827]
[1757506848795,0.00013851,112710.0,112700.0,0.89794953]
[1757506850261,0.00013851,112710.0,112700.0,1.29794953]
[1757506851001,0.00013851,112710.0,112700.0,1.01453827]
[1757506851208,0.00013851,112710.0,112700.0,1.16361827]
[1757506851370,0.00013851,112710.0,112700.0,0.76361827]
[1757506851816,0.13832977,112710.0,112700.0,0.27237827]
[1757506852036,0.16409977,112710.0,112700.0,0.42145827]
[1757506852257,0.16632466,112710.0,112700.0,0.42145827]
[1757506852704,0.0334134,112710.0,112700.0,0.42145827]
[1757506853481,0.0334134,112710.0,112700.0,0.42261827]
[1757506853482,0.0023634,112710.0,112700.0,0.42261827]
[1757506853683,0.0044434,112710.0,112700.0,0.42261827]
[1757506853884,0.0334134,112710.0,112700.0,0.41845827]
[1757506854130,0.16632466,112710.0,112700.0,0.41845827]
[1757506854332,0.16632466,112710.0,112700.0,0.24199599]
[1757506854538,0.20591789,112710.0,112700.0,0.09291599]
[1757506854732,0.203693,112710.0,112700.0,0.24199599]
[1757506854907,0.07078174,112710.0,112700.0,0.09291599]
[1757506855112,0.203693,112710.0,112700.0,0.24199599]
[1757506855730,0.203693,112710.0,112700.0,0.24099599]
[1757506856114,0.40493906,112710.0,112650.0,0.25467286]
[1757506856346,0.40493906,112710.0,112660.0,0.09191599]
[1757506856347,0.34999871,112680.0,112660.0,0.09191599]
[1757506856588,0.20577938,112670.0,112660.0,0.09191599]
[1757506856816,0.20355449,112670.0,112660.0,0.09191599]
[1757506857602,0.20355449,112670.0,112660.0,0.26944128]
[1757506858226,0.20355449,112670.0,112660.0,0.09191599]
[1757506858996,0.20355449,112670.0,112660.0,0.26944128]
[1757506859292,0.20455449,112670.0,112660.0,0.26944128]
[1757506859698,0.21981527,112670.0,112660.0,0.09191599]
[1757506860449,0.06113401,112670.0,112660.0,0.26944128]
[1757506860623,0.001,112670.0,112660.0,0.47267254]
[1757506860822,0.001,112670.0,112660.0,0.33976128]
[1757506861133,0.00628,112670.0,112660.0,0.48908128]
[1757506861772,0.00628,112670.0,112660.0,0.33976128]
[1757506862018,0.00628,112670.0,112660.0,0.48908128]
[1757506862277,0.17472938,112680.0,112670.0,0.17750954]
[1757506862431,0.04506427,112680.0,112670.0,0.26942553]
[1757506862662,4.615e-05,112680.0,112670.0,0.27158553]
[1757506862927,4.615e-05,112680.0,112670.0,0.40449679]
[1757506863567,4.615e-05,112680.0,112670.0,0.55381679]
[1757506864447,4.615e-05,112680.0,112670.0,0.62521871]
[1757506865419,4.615e-05,112680.0,112670.0,0.96951871]
[1757506865625,4.615e-05,112680.0,112670.0,1.25936524]
[1757506866185,4.615e-05,112680.0,112670.0,1.31104524]
[1757506866400,0.00024044,112720.0,112710.0,0.17744654]
[1757506866621,0.07089872,112720.0,112710.0,0.69119571]
[1757506866841,0.0002866,112720.0,112710.0,0.69335571]
[1757506867065,0.2774679,112720.0,112710.0,0.16007599]
[1757506867268,0.34585513,112720.0,112710.0,0.24131599]
[1757506867694,0.27524301,112720.0,112710.0,0.24131599]
[1757506867873,0.27524301,112720.0,112710.0,0.42092253]
[1757506867874,0.0002866,112720.0,112710.0,0.42092253]
[1757506868733,0.0055666,112720.0,112710.0,0.24131599]
[1757506869172,0.0055666,112720.0,112710.0,0.41876253]
[1757506869342,0.0002866,112720.0,112710.0,0.42092253]
[1757506869700,0.0002866,112720.0,112710.0,0.42100253]
[1757506869921,0.0002866,112720.0,112710.0,0.24355599]
[1757506870124,0.0002866,112720.0,112710.0,0.42196253]
[1757506870818,0.0002866,112720.0,112710.0,0.09407599]
[1757506871010,0.0023666,112720.0,112710.0,0.41880253]
[1757506871208,0.0002866,112720.0,112710.0,0.42096253]
[1757506872468,0.0002866,112720.0,112710.0,0.27152253]
[1757506872682,0.0053066,112720.0,112710.0,0.09191599]
[1757506872896,0.0002866,112720.0,112710.0,0.42072253]
[1757506873703,0.0023766,112720.0,112710.0,0.09391599]
[1757506873981,0.0023766,112720.0,112710.0,0.24327599]
[1757506874181,0.0053066,112720.0,112710.0,0.24327599]
[1757506874411,0.0053066,112720.0,112710.0,0.09391599]
[1757506874631,0.0023766,112720.0,112710.0,0.42068253]
[1757506875595,0.0002866,112720.0,112710.0,0.24323599]
[1757506875822,0.0002866,112720.0,112710.0,0.42206253]
[1757506876380,0.0002866,112720.0,112710.0,0.62637571]
[1757506876725,0.0002866,112720.0,112710.0,0.42206253]
[1757506876855,0.0002866,112720.0,112710.0,0.62637571]
[1757506877236,0.0002866,112720.0,112710.0,0.42206253]
[1757506877446,0.0002866,112720.0,112710.0,1.02637571]
[1757506877655,0.0002866,112720.0,112710.0,1.02737571]
[1757506878921,0.0023766,112720.0,112710.0,0.82316253]
[1757506879120,0.0023766,112720.0,112710.0,0.82312253]
[1757506879326,0.0053066,112720.0,112710.0,0.64367599]
[1757506879504,0.0053066,112720.0,112710.0,0.82112253]
[1757506879750,0.0053066,112720.0,112710.0,0.64367599]
[1757506880132,0.0053066,112720.0,112710.0,0.49291599]
[1757506880359,0.07127983,112720.0,112710.0,0.24363599]
[1757506880966,0.04489983,112720.0,112710.0,0.24363599]
[1757506881407,0.04489983,112720.0,112710.0,0.42108253]
[1757506881611,0.0002866,112720.0,112710.0,0.62739571]
[1757506881830,0.0002866,112720.0,112710.0,0.42446253]
[1757506882029,0.0002866,112720.0,112710.0,0.62877571]
[1757506882232,0.0002866,112720.0,112710.0,0.42446253]
[1757506882459,0.0002866,112720.0,112710.0,0.42308253]
[1757506884436,0.30294448,112720.0,112710.0,0.09291599]
[1757506884658,0.81815039,112720.0,112710.0,0.09291599]
[1757506884885,0.81815039,112720.0,112710.0,0.24383599]
[1757506885822,0.81815039,112720.0,112710.0,0.24283599]
[1757506886036,0.03959323,112690.0,112660.0,0.25701367]
[1757506886268,0.23362318,112680.0,112670.0,0.16007599]
[1757506886510,0.23362318,112680.0,112670.0,0.31091599]
[1757506886511,0.23571318,112680.0,112670.0,0.31091599]
[1757506887169,0.0314,112680.0,112670.0,0.31091599]
[1757506887643,0.0314,112680.0,112670.0,0.16007599]
[1757506887848,0.0314,112680.0,112670.0,0.31095599]
[1757506888266,0.0314,112680.0,112670.0,0.31195599]
[1757506888942,0.30043299,112680.0,112670.0,0.16107599]
[1757506889147,0.30043299,112680.0,112670.0,0.31187599]
[1757506889380,0.30043299,112680.0,112670.0,0.16107599]
[1757506889558,0.30043299,112680.0,112670.0,0.31187599]
[1757506890023,0.30043299,112680.0,112670.0,0.24371599]
[1757506890438,0.30043299,112680.0,112670.0,0.24271599]
[1757506891060,0.06973981,112680.0,112670.0,0.24271599]
[1757506891241,0.0719647,112680.0,112670.0,0.24271599]
[1757506892066,0.00724489,112680.0,112670.0,0.42022553]
[1757506892187,0.38252323,112690.0,112670.0,0.42222553]
[1757506892382,0.40890323,112690.0,112670.0,0.42222553]
[1757506892999,0.00209,112680.0,112670.0,0.42222553]
[1757506893250,0.00502,112680.0,112670.0,0.42022553]
[1757506894754,0.27028641,112690.0,112670.0,0.62653871]
[1757506894755,0.37959323,112690.0,112670.0,0.62653871]
[1757506894954,0.40764981,112690.0,112670.0,0.27142553]
[1757506895191,0.43402981,112690.0,112680.0,0.00221867]
[1757506895389,0.37014658,112690.0,112680.0,0.24477466]
[1757506895597,0.40973981,112690.0,112680.0,0.24255599]
[1757506896453,0.37014658,112690.0,112680.0,0.24255599]
[1757506896656,0.41073981,112690.0,112680.0,0.24255599]
[1757506896857,0.41073981,112690.0,112680.0,0.42004977]
[1757506896858,0.00602,112690.0,112680.0,0.42004977]
[1757506898269,0.00602,112690.0,112680.0,0.24255599]
[1757506898738,0.001,112690.0,112680.0,0.42204977]
[1757506899270,0.00209,112690.0,112680.0,0.42204977]
[1757506899497,0.38256938,112700.0,112680.0,0.42204977]
[1757506899697,0.40769596,112700.0,112690.0,0.09191599]
[1757506899897,0.40978596,112700.0,112690.0,0.09191599]
[1757506900328,0.43616596,112700.0,112690.0,0.0915589]
[1757506900994,0.64047914,112700.0,112690.0,0.0915589]
[1757506901195,0.64147914,112700.0,112690.0,0.0915589]
[1757506902374,0.00104615,112700.0,112690.0,0.54578858]
[1757506902577,0.00104615,112700.0,112690.0,0.54495011]
[1757506903168,4.615e-05,112700.0,112690.0,0.54495011]
[1757506903377,4.615e-05,112700.0,112690.0,0.54595011]
[1757506904001,4.615e-05,112700.0,112690.0,0.54495011]
[1757506904246,4.615e-05,112700.0,112690.0,0.54595011]
[1757506904448,4.615e-05,112700.0,112690.0,0.69501011]
[1757506904652,4.615e-05,112700.0,112690.0,0.34025693]
[1757506904835,4.615e-05,112700.0,112690.0,0.49069693]
[1757506906641,4.615e-05,112700.0,112690.0,0.34025693]
[1757506906841,4.615e-05,112700.0,112690.0,0.49061693]
[1757506907424,4.615e-05,112700.0,112690.0,0.49199693]
[1757506907624,4.615e-05,112700.0,112690.0,0.49061693]
[1757506907739,4.615e-05,112700.0,112690.0,0.34025693]
[1757506907947,4.615e-05,112700.0,112690.0,0.49057693]
[1757506908766,4.615e-05,112700.0,112690.0,0.69489011]
[1757506908988,4.615e-05,112700.0,112690.0,0.69627011]
[1757506909999,4.615e-05,112700.0,112690.0,0.34025693]
[1757506910277,0.20960933,112700.0,112690.0,0.3110789]
[1757506910493,0.00529615,112700.0,112690.0,0.49069693]
[1757506911088,0.00529615,112700.0,112690.0,0.1607189]
[1757506911335,0.00529615,112700.0,112690.0,0.48867693]
[1757506911535,0.00529615,112700.0,112690.0,0.1607189]
[1757506911895,0.02913615,112700.0,112690.0,0.3111589]
[1757506913127,0.02913615,112700.0,112690.0,0.1607189]
[1757506913321,0.02913615,112700.0,112690.0,0.3111589]
[1757506913521,0.29816914,112700.0,112690.0,0.3111189]
[1757506913730,0.09385596,112700.0,112690.0,0.3111189]
[1757506913932,0.30039403,112700.0,112690.0,0.3111189]
[1757506914129,0.29816914,112700.0,112690.0,0.3111189]
[1757506914772,0.09385596,112700.0,112690.0,0.48859693]
[1757506915177,0.07001596,112700.0,112690.0,0.49065693]
[1757506915851,0.07001596,112700.0,112690.0,0.48965693]
[1757506916254,0.07001596,112700.0,112690.0,0.48759693]
[1757506916973,0.04488938,112700.0,112690.0,0.48965693]
[1757506917107,0.04488938,112700.0,112690.0,0.33925693]
[1757506917370,0.06872938,112700.0,112690.0,0.1597189]
[1757506917563,0.30039403,112700.0,112690.0,0.3101989]
[1757506917826,0.29816914,112700.0,112690.0,0.3101989]
[1757506919052,0.09385596,112700.0,112690.0,0.3101989]
[1757506919249,0.30039403,112700.0,112690.0,0.3101989]
[1757506919446,0.30816914,112700.0,112690.0,0.3101989]
[1757506919884,0.10385596,112700.0,112690.0,0.3101989]
[1757506920104,0.10608085,112700.0,112690.0,0.1597189]
[1757506920345,0.10608085,112700.0,112690.0,0.3101989]
[1757506921231,0.31039403,112700.0,112690.0,0.3101989]
[1757506921438,0.30816914,112700.0,112690.0,0.3101989]
[1757506921868,0.30816914,112700.0,112690.0,0.48767693]
[1757506922068,0.10385596,112700.0,112690.0,0.3101989]
[1757506922269,0.10385596,112700.0,112690.0,0.48767693]
[1757506922485,0.10385596,112700.0,112690.0,0.3101989]
[1757506922688,0.08001596,112700.0,112690.0,0.48767693]
[1757506922895,0.08001596,112700.0,112690.0,0.48973693]
[1757506923546,0.08001596,112700.0,112690.0,0.3101989]
[1757506923769,0.08224085,112700.0,112690.0,0.3101989]
[1757506923970,0.10608085,112700.0,112690.0,0.3101989]
[1757506924234,0.04963938,112700.0,112690.0,0.48973693]
[1757506924472,0.01004615,112700.0,112690.0,0.48973693]
[1757506924961,0.01529615,112700.0,112690.0,0.3117589]
[1757506925652,0.01529615,112700.0,112690.0,0.49129693]
[1757506925854,0.01529615,112700.0,112690.0,0.48923693]
[1757506926090,0.31039403,112700.0,112690.0,0.1597189]
[1757506926296,0.10385596,112700.0,112690.0,0.2437189]
[1757506926498,0.10608085,112700.0,112690.0,0.2437189]
[1757506926708,0.31039403,112700.0,112690.0,0.2437189]
[1757506926917,0.23683214,112700.0,112690.0,0.2437189]
[1757506927124,0.10385596,112700.0,112690.0,0.2437189]
[1757506927301,0.10608085,112700.0,112690.0,0.2437189]
[1757506927927,0.23905703,112700.0,112690.0,0.2437189]
[1757506928265,0.10385596,112700.0,112690.0,0.0915589]
[1757506928474,0.23905703,112700.0,112690.0,0.2438789]
[1757506928656,0.23683214,112700.0,112690.0,0.2438789]
[1757506929308,0.23683214,112700.0,112690.0,0.0915589]
[1757506929506,0.90661442,112700.0,112690.0,0.0915589]
[1757506929714,0.59617596,112700.0,112690.0,0.0915589]
[1757506929902,0.72915214,112700.0,112690.0,0.0915589]
[1757506933002,0.59617596,112700.0,112690.0,0.0915589]
[1757506933215,0.72915214,112700.0,112690.0,0.0915589]
[1757506933833,0.59617596,112700.0,112690.0,0.0915589]
[1757506934035,0.72915214,112700.0,112690.0,0.0915589]
[1757506935462,0.57683214,112700.0,112690.0,0.0915589]
[1757506935900,0.72911214,112700.0,112690.0,0.0915589]
[1757506936112,0.59613596,112700.0,112690.0,0.0915589]
[1757506936337,0.72911214,112700.0,112690.0,0.0915589]
[1757506936988,0.57683214,112700.0,112690.0,0.0915589]
[1757506937218,0.44385596,112700.0,112690.0,0.0915589]
[1757506937656,0.57683214,112700.0,112690.0,0.0915589]
[1757506938521,0.78428976,112700.0,112690.0,0.0915589]
[1757506938727,0.44385596,112700.0,112690.0,0.0915589]
[1757506938939,0.78428976,112700.0,112690.0,0.0915589]
[1757506939565,0.55063963,112700.0,112690.0,0.26903693]
[1757506939770,0.01004615,112700.0,112690.0,0.44141383]
[1757506939988,0.01004615,112700.0,112690.0,0.27119693]
[1757506940219,0.03517273,112700.0,112690.0,0.27119693]
[1757506940478,0.20754963,112700.0,112690.0,0.0937189]
[1757506940685,0.20754963,112700.0,112690.0,0.0915589]
[1757506940686,0.44507976,112700.0,112690.0,0.0915589]
[1757506940896,0.10464596,112700.0,112690.0,0.2442389]
[1757506941107,0.44730465,112700.0,112690.0,0.0915589]
[1757506941315,0.44507976,112700.0,112690.0,0.0915589]
[1757506941521,0.62254204,112700.0,112690.0,0.0915589]
[1757506941736,0.44507976,112700.0,112690.0,0.0915589]
[1757506942557,0.10464596,112700.0,112690.0,0.09377737]